[Event "Late-Titled-Tuesday-Blitz-April-30-2024"]
[Site "Chess.com"]
[Date "2024.04.30"]
[Round "5"]
[White "AsaHoffmann"]
[Black "scandalgod"]
[Result "1-0"]
[WhiteElo "2337"]
[BlackElo "2487"]
[TimeControl "180+1"]
[EndTime "14:58:09 PDT"]
[Termination "AsaHoffmann won on time"]

1. d4 {[%clk 0:02:36.8]} 1... d5 {[%clk 0:02:59.4]} 2. Bg5 {[%clk 0:02:31.2]}
2... f6 {[%clk 0:02:58.8]} 3. Bf4 {[%clk 0:02:29.6]} 3... c5 {[%clk 0:02:58.8]}
4. e3 {[%clk 0:02:23.4]} 4... Nc6 {[%clk 0:02:58.2]} 5. Nf3 {[%clk 0:02:23.2]}
5... Bf5 {[%clk 0:02:56.7]} 6. Nc3 {[%clk 0:02:21.9]} 6... g5 {[%clk 0:02:40.6]}
7. Bg3 {[%clk 0:02:19]} 7... h5 {[%clk 0:02:40.2]} 8. h3 {[%clk 0:02:13.9]} 8...
c4 {[%clk 0:02:37.4]} 9. Nd2 {[%clk 0:02:09.8]} 9... e6 {[%clk 0:02:30.4]} 10.
e4 {[%clk 0:02:08.4]} 10... Bg6 {[%clk 0:02:27.1]} 11. exd5 {[%clk 0:02:08]}
11... exd5 {[%clk 0:02:26.6]} 12. Qe2+ {[%clk 0:02:07.8]} 12... Kf7 {[%clk
0:02:24.1]} 13. Nf3 {[%clk 0:02:05.4]} 13... Qa5 {[%clk 0:02:15.7]} 14. O-O-O
{[%clk 0:02:01.7]} 14... Bb4 {[%clk 0:02:06.7]} 15. Nxd5 {[%clk 0:01:53.2]}
15... Qxd5 {[%clk 0:02:03.3]} 16. Qxc4 {[%clk 0:01:52.8]} 16... Nge7 {[%clk
0:02:00.6]} 17. a3 {[%clk 0:01:44.7]} 17... Ba5 {[%clk 0:01:58.7]} 18. Qa4
{[%clk 0:01:40.9]} 18... Kg7 {[%clk 0:01:55.7]} 19. Bc4 {[%clk 0:01:39.9]} 19...
Qf5 {[%clk 0:01:49.9]} 20. Rhe1 {[%clk 0:01:38]} 20... Bxe1 {[%clk 0:01:46]} 21.
Rxe1 {[%clk 0:01:36.5]} 21... Nd5 {[%clk 0:01:43]} 22. Bd3 {[%clk 0:01:25.6]}
22... Qd7 {[%clk 0:01:42.1]} 23. Bxg6 {[%clk 0:01:24.2]} 23... Kxg6 {[%clk
0:01:41.2]} 24. c4 {[%clk 0:01:24.1]} 24... Nb6 {[%clk 0:01:39.9]} 25. Qc2+
{[%clk 0:01:23.4]} 25... Kg7 {[%clk 0:01:39.3]} 26. d5 {[%clk 0:01:23.1]} 26...
Na5 {[%clk 0:01:33.8]} 27. Nd4 {[%clk 0:01:22.5]} 27... Rae8 {[%clk 0:01:18.3]}
28. Ne6+ {[%clk 0:01:19.6]} 28... Kh6 {[%clk 0:01:01.6]} 29. b3 {[%clk
0:01:11.4]} 29... Qf7 {[%clk 0:00:58.3]} 30. f4 {[%clk 0:01:06.8]} 30... Qg6
{[%clk 0:00:52.7]} 31. f5 {[%clk 0:01:06.6]} 31... Nxb3+ {[%clk 0:00:44.5]} 32.
Qxb3 {[%clk 0:01:03.4]} 32... Qxf5 {[%clk 0:00:44.5]} 33. Kb2 {[%clk 0:00:54.7]}
33... Rc8 {[%clk 0:00:42.5]} 34. Rc1 {[%clk 0:00:53.9]} 34... Rhe8 {[%clk
0:00:36.3]} 35. a4 {[%clk 0:00:53.2]} 35... Rxe6 {[%clk 0:00:35.7]} 36. dxe6
{[%clk 0:00:51.8]} 36... Qxe6 {[%clk 0:00:35.8]} 37. c5 {[%clk 0:00:49.3]} 37...
Qxb3+ {[%clk 0:00:22]} 38. Kxb3 {[%clk 0:00:48.8]} 38... Nd5 {[%clk 0:00:22.2]}
39. Bd6 {[%clk 0:00:37.9]} 39... Kg6 {[%clk 0:00:20.7]} 40. g4 {[%clk
0:00:35.9]} 40... hxg4 {[%clk 0:00:19.9]} 41. hxg4 {[%clk 0:00:35.9]} 41... Ne3
{[%clk 0:00:20]} 42. Rg1 {[%clk 0:00:31.7]} 42... Rc6 {[%clk 0:00:19.2]} 43. Rg3
{[%clk 0:00:31.2]} 43... Nd5 {[%clk 0:00:18.2]} 44. Kc4 {[%clk 0:00:31.1]} 44...
Nb6+ {[%clk 0:00:18.1]} 45. Kb5 {[%clk 0:00:29.4]} 45... Nd7 {[%clk 0:00:18.1]}
46. a5 {[%clk 0:00:27.9]} 46... a6+ {[%clk 0:00:17.8]} 47. Kb4 {[%clk
0:00:27.9]} 47... Kf7 {[%clk 0:00:16.5]} 48. Rd3 {[%clk 0:00:27.7]} 48... Nf8
{[%clk 0:00:15.7]} 49. Bxf8 {[%clk 0:00:25.6]} 49... Kxf8 {[%clk 0:00:15.9]} 50.
Rd7 {[%clk 0:00:25.4]} 50... f5 {[%clk 0:00:13.4]} 51. gxf5 {[%clk 0:00:22.5]}
51... g4 {[%clk 0:00:13.9]} 52. Rxb7 {[%clk 0:00:19.6]} 52... Rf6 {[%clk
0:00:12.7]} 53. Kc4 {[%clk 0:00:18.9]} 53... Rxf5 {[%clk 0:00:13]} 54. Rb3
{[%clk 0:00:18]} 54... Ke7 {[%clk 0:00:11.6]} 55. Rd3 {[%clk 0:00:17.7]} 55...
Rg5 {[%clk 0:00:10.6]} 56. c6 {[%clk 0:00:17.6]} 56... Rg8 {[%clk 0:00:09.2]}
57. Kc5 {[%clk 0:00:17.4]} 57... g3 {[%clk 0:00:08.6]} 58. c7 {[%clk 0:00:16.7]}
58... g2 {[%clk 0:00:08.7]} 59. Rd1 {[%clk 0:00:15.9]} 59... Ke6 {[%clk
0:00:05.6]} 60. Kc6 {[%clk 0:00:15.8]} 60... Ke5 {[%clk 0:00:04.3]} 61. Kb7
{[%clk 0:00:15.7]} 61... Rg7 {[%clk 0:00:02.6]} 62. Kb8 {[%clk 0:00:15.3]} 62...
g1=Q {[%clk 0:00:00.6]} 63. Rxg1 {[%clk 0:00:14.3]} 63... Rxg1 {[%clk
0:00:01.3]} 64. c8=Q {[%clk 0:00:13.6]} 64... Kd5 {[%clk 0:00:01.7]} 65. Qxa6
{[%clk 0:00:12.8]} 65... Rg4 {[%clk 0:00:00.7]} 66. Qb7+ {[%clk 0:00:12]} 66...
Kd4 {[%clk 0:00:00.4]} 67. a6 {[%clk 0:00:11.4]} 1-0

[Event "Late-Titled-Tuesday-Blitz-April-30-2024"]
[Site "Chess.com"]
[Date "2024.04.30"]
[Round "5"]
[White "GambitGiesbergen"]
[Black "kylelancman"]
[Result "0-1"]
[WhiteElo "2305"]
[BlackElo "2508"]
[TimeControl "180+1"]
[EndTime "14:58:13 PDT"]
[Termination "kylelancman won by checkmate"]

1. e4 {[%clk 0:03:00.9]} 1... c5 {[%clk 0:02:59.6]} 2. d4 {[%clk 0:03:00.1]}
2... cxd4 {[%clk 0:02:59.1]} 3. c3 {[%clk 0:03:00.6]} 3... Nf6 {[%clk
0:02:58.4]} 4. e5 {[%clk 0:03:00]} 4... Nd5 {[%clk 0:02:58.5]} 5. Nf3 {[%clk
0:03:00.6]} 5... Nc6 {[%clk 0:02:57.7]} 6. cxd4 {[%clk 0:03:00.8]} 6... d6
{[%clk 0:02:57.6]} 7. Bc4 {[%clk 0:03:00.7]} 7... Nb6 {[%clk 0:02:57.4]} 8. Bb5
{[%clk 0:03:00.3]} 8... dxe5 {[%clk 0:02:56.9]} 9. Nxe5 {[%clk 0:03:01.2]} 9...
Bd7 {[%clk 0:02:56.3]} 10. Bxc6 {[%clk 0:02:56.2]} 10... Bxc6 {[%clk 0:02:56.2]}
11. Nxc6 {[%clk 0:02:55.7]} 11... bxc6 {[%clk 0:02:57.1]} 12. O-O {[%clk
0:02:55.8]} 12... g6 {[%clk 0:02:43.6]} 13. Re1 {[%clk 0:02:50.3]} 13... Bg7
{[%clk 0:02:43.4]} 14. Bg5 {[%clk 0:02:50.1]} 14... Nd5 {[%clk 0:02:29.2]} 15.
Nc3 {[%clk 0:02:48.9]} 15... f6 {[%clk 0:02:21.3]} 16. Nxd5 {[%clk 0:02:22.5]}
16... cxd5 {[%clk 0:02:16.6]} 17. Bf4 {[%clk 0:02:19]} 17... Qd7 {[%clk
0:02:10.5]} 18. Qe2 {[%clk 0:02:19.1]} 18... Kf7 {[%clk 0:02:10]} 19. Rac1
{[%clk 0:02:16.4]} 19... Rac8 {[%clk 0:02:08.7]} 20. Qa6 {[%clk 0:02:13.9]}
20... Rxc1 {[%clk 0:01:50.2]} 21. Rxc1 {[%clk 0:02:14.8]} 21... g5 {[%clk
0:01:34.3]} 22. Bg3 {[%clk 0:02:13.6]} 22... h5 {[%clk 0:01:19.5]} 23. h4 {[%clk
0:02:04.1]} 23... gxh4 {[%clk 0:01:16.4]} 24. Bxh4 {[%clk 0:01:59.4]} 24... Rb8
{[%clk 0:01:02.8]} 25. b3 {[%clk 0:01:56.6]} 25... Bh6 {[%clk 0:00:58.5]} 26.
Re1 {[%clk 0:01:53.5]} 26... Rb6 {[%clk 0:00:56.7]} 27. Qe2 {[%clk 0:01:50.4]}
27... Re6 {[%clk 0:00:31]} 28. Qxh5+ {[%clk 0:01:46.6]} 28... Kg7 {[%clk
0:00:31.7]} 29. Qg4+ {[%clk 0:01:44.8]} 29... Kf7 {[%clk 0:00:32.4]} 30. Qh5+
{[%clk 0:01:11.5]} 30... Kg7 {[%clk 0:00:31.7]} 31. Rxe6 {[%clk 0:01:08.5]}
31... Qxe6 {[%clk 0:00:31.5]} 32. Bg3 {[%clk 0:01:05.3]} 32... Qe1+ {[%clk
0:00:27.8]} 33. Kh2 {[%clk 0:01:05]} 33... Qe4 {[%clk 0:00:27.5]} 34. Qe8 {[%clk
0:00:54.5]} 34... Bf4 {[%clk 0:00:25.9]} 35. Qd7 {[%clk 0:00:45.7]} 35... Bxg3+
{[%clk 0:00:22.3]} 36. fxg3 {[%clk 0:00:46.6]} 36... Kf7 {[%clk 0:00:21.1]} 37.
Qd8 {[%clk 0:00:29.5]} 37... Qxd4 {[%clk 0:00:19.3]} 38. Qh8 {[%clk 0:00:29.2]}
38... Ke6 {[%clk 0:00:16.3]} 39. Qg8+ {[%clk 0:00:28.4]} 39... Kd6 {[%clk
0:00:15.9]} 40. Qd8+ {[%clk 0:00:28.4]} 40... Ke6 {[%clk 0:00:15.9]} 41. Qg8+
{[%clk 0:00:28.2]} 41... Kf5 {[%clk 0:00:16]} 42. Qh7+ {[%clk 0:00:26.4]} 42...
Ke5 {[%clk 0:00:14.8]} 43. Qxe7+ {[%clk 0:00:25.9]} 43... Kf5 {[%clk 0:00:15.3]}
44. Qd7+ {[%clk 0:00:26.1]} 44... Ke4 {[%clk 0:00:11.3]} 45. Qe7+ {[%clk
0:00:22.6]} 45... Kd3 {[%clk 0:00:10.9]} 46. a4 {[%clk 0:00:18.7]} 46... Kc3
{[%clk 0:00:10.3]} 47. Qa3 {[%clk 0:00:16.1]} 47... Kc2 {[%clk 0:00:06.2]} 48.
b4 {[%clk 0:00:15]} 48... Qb2 {[%clk 0:00:04.4]} 49. Qf3 {[%clk 0:00:12.1]}
49... Qe5 {[%clk 0:00:04.7]} 50. b5 {[%clk 0:00:10.3]} 50... d4 {[%clk
0:00:04.7]} 51. a5 {[%clk 0:00:10.1]} 51... d3 {[%clk 0:00:04.9]} 52. b6 {[%clk
0:00:09.9]} 52... axb6 {[%clk 0:00:05.4]} 53. axb6 {[%clk 0:00:10.8]} 53... d2
{[%clk 0:00:06.1]} 54. Qc6+ {[%clk 0:00:09.5]} 54... Kb1 {[%clk 0:00:05.7]} 55.
Qd7 {[%clk 0:00:07.5]} 55... Qh5+ {[%clk 0:00:05.6]} 56. Kg1 {[%clk 0:00:04.3]}
56... d1=Q+ {[%clk 0:00:05.8]} 57. Qxd1+ {[%clk 0:00:04]} 57... Qxd1+ {[%clk
0:00:05.8]} 58. Kh2 {[%clk 0:00:04.9]} 58... Qb3 {[%clk 0:00:06.4]} 59. g4
{[%clk 0:00:03.8]} 59... Qxb6 {[%clk 0:00:06.5]} 60. g5 {[%clk 0:00:04.7]} 60...
fxg5 {[%clk 0:00:06.4]} 61. g4 {[%clk 0:00:05.6]} 61... Qd4 {[%clk 0:00:06.9]}
62. Kg3 {[%clk 0:00:06.2]} 62... Qf4+ {[%clk 0:00:07.3]} 63. Kg2 {[%clk
0:00:06.2]} 63... Qxg4+ {[%clk 0:00:07.6]} 64. Kh1 {[%clk 0:00:07.1]} 64... Kc2
{[%clk 0:00:06.7]} 65. Kh2 {[%clk 0:00:07.3]} 65... Kd2 {[%clk 0:00:07.6]} 66.
Kh1 {[%clk 0:00:08.1]} 66... Ke2 {[%clk 0:00:08.5]} 67. Kh2 {[%clk 0:00:08.3]}
67... Kf2 {[%clk 0:00:09.4]} 68. Kh1 {[%clk 0:00:09.1]} 68... Qg2# {[%clk
0:00:10.3]} 0-1

[Event "Late-Titled-Tuesday-Blitz-April-30-2024"]
[Site "Chess.com"]
[Date "2024.04.30"]
[Round "5"]
[White "MKlose11"]
[Black "gmcorrales"]
[Result "1-0"]
[WhiteElo "2652"]
[BlackElo "2813"]
[TimeControl "180+1"]
[EndTime "14:58:19 PDT"]
[Termination "MKlose11 won on time"]

1. e4 {[%clk 0:03:00.9]} 1... c5 {[%clk 0:02:58.8]} 2. Nc3 {[%clk 0:03:00.9]}
2... g6 {[%clk 0:02:58]} 3. d3 {[%clk 0:03:01.5]} 3... Bg7 {[%clk 0:02:57.9]} 4.
Be3 {[%clk 0:03:01.8]} 4... d6 {[%clk 0:02:57.4]} 5. g3 {[%clk 0:03:02.2]} 5...
Nc6 {[%clk 0:02:57.2]} 6. Bg2 {[%clk 0:03:01.9]} 6... Rb8 {[%clk 0:02:57.3]} 7.
Nge2 {[%clk 0:03:01.4]} 7... b5 {[%clk 0:02:55.5]} 8. Qd2 {[%clk 0:03:01.3]}
8... b4 {[%clk 0:02:55.7]} 9. Nd1 {[%clk 0:03:01.1]} 9... e5 {[%clk 0:02:55.5]}
10. O-O {[%clk 0:03:00]} 10... h5 {[%clk 0:02:54.6]} 11. h3 {[%clk 0:02:56.1]}
11... Nge7 {[%clk 0:02:52.2]} 12. f4 {[%clk 0:02:55.3]} 12... h4 {[%clk
0:02:43.8]} 13. g4 {[%clk 0:02:54.9]} 13... exf4 {[%clk 0:02:43.5]} 14. Bxf4
{[%clk 0:02:50]} 14... Be6 {[%clk 0:02:36]} 15. a3 {[%clk 0:02:48.2]} 15... b3
{[%clk 0:02:16.6]} 16. c3 {[%clk 0:02:47.1]} 16... Rc8 {[%clk 0:02:09.7]} 17.
Ne3 {[%clk 0:02:45.2]} 17... d5 {[%clk 0:02:01.7]} 18. exd5 {[%clk 0:02:32.9]}
18... Nxd5 {[%clk 0:02:02.6]} 19. Nxd5 {[%clk 0:02:30.9]} 19... Bxd5 {[%clk
0:02:03.5]} 20. Qe3+ {[%clk 0:02:31.2]} 20... Ne7 {[%clk 0:01:39]} 21. Be5
{[%clk 0:02:06.7]} 21... O-O {[%clk 0:01:29.9]} 22. Bxg7 {[%clk 0:02:05]} 22...
Kxg7 {[%clk 0:01:30.7]} 23. Nf4 {[%clk 0:01:56.9]} 23... Bxg2 {[%clk 0:01:28.8]}
24. Kxg2 {[%clk 0:01:56.5]} 24... Qd6 {[%clk 0:01:26.8]} 25. Rae1 {[%clk
0:01:52.3]} 25... Nc6 {[%clk 0:01:21]} 26. Qf2 {[%clk 0:01:37]} 26... Ne5 {[%clk
0:01:10.8]} 27. Qxh4 {[%clk 0:01:26.8]} 27... Nxd3 {[%clk 0:01:04.2]} 28. Nxd3
{[%clk 0:01:18.8]} 28... Qxd3 {[%clk 0:01:05.1]} 29. Qf6+ {[%clk 0:01:18.5]}
29... Kg8 {[%clk 0:01:05.5]} 30. Re7 {[%clk 0:01:06.5]} 30... a5 {[%clk
0:00:46]} 31. Rf3 {[%clk 0:00:55.4]} 31... Qd5 {[%clk 0:00:40.3]} 32. Qe5 {[%clk
0:00:46.7]} 32... Qxe5 {[%clk 0:00:32.8]} 33. Rxe5 {[%clk 0:00:46]} 33... a4
{[%clk 0:00:32.4]} 34. Re4 {[%clk 0:00:39.9]} 34... c4 {[%clk 0:00:31.5]} 35.
Re7 {[%clk 0:00:37.5]} 35... Rcd8 {[%clk 0:00:31.4]} 36. Rc7 {[%clk 0:00:33.2]}
36... Rd2+ {[%clk 0:00:28.4]} 37. Rf2 {[%clk 0:00:33.6]} 37... Rfd8 {[%clk
0:00:28.1]} 38. Rxc4 {[%clk 0:00:17.3]} 38... Rxf2+ {[%clk 0:00:27.3]} 39. Kxf2
{[%clk 0:00:18.2]} 39... Rd2+ {[%clk 0:00:27.9]} 40. Kg3 {[%clk 0:00:17.1]}
40... Rxb2 {[%clk 0:00:28.8]} 41. Rxa4 {[%clk 0:00:17.4]} 41... Rc2 {[%clk
0:00:27.4]} 42. c4 {[%clk 0:00:15]} 42... Rc3+ {[%clk 0:00:22.1]} 43. Kh4 {[%clk
0:00:14.7]} 43... Kg7 {[%clk 0:00:21.9]} 44. Rb4 {[%clk 0:00:10.4]} 44... f6
{[%clk 0:00:22.1]} 45. g5 {[%clk 0:00:06.3]} 45... f5 {[%clk 0:00:21.8]} 46. a4
{[%clk 0:00:03.6]} 46... Kf7 {[%clk 0:00:13.3]} 47. a5 {[%clk 0:00:03.2]} 47...
f4 {[%clk 0:00:11.7]} 48. a6 {[%clk 0:00:03]} 48... f3 {[%clk 0:00:11.9]} 49.
Kg3 {[%clk 0:00:03.2]} 49... b2 {[%clk 0:00:03.3]} 50. Rxb2 {[%clk 0:00:02.7]}
50... Ra3 {[%clk 0:00:04.2]} 51. Rf2 {[%clk 0:00:01.7]} 51... Ke6 {[%clk
0:00:04.4]} 52. Rxf3 {[%clk 0:00:02.6]} 52... Ke5 {[%clk 0:00:04.2]} 53. Kg4
{[%clk 0:00:02.6]} 53... Rxa6 {[%clk 0:00:03.9]} 54. Rf6 {[%clk 0:00:03.4]}
54... Ra1 {[%clk 0:00:03.5]} 55. Rxg6 {[%clk 0:00:03.9]} 55... Rg1+ {[%clk
0:00:02.8]} 56. Kh5 {[%clk 0:00:04]} 56... Rc1 {[%clk 0:00:02.9]} 57. h4 {[%clk
0:00:04.9]} 57... Rxc4 {[%clk 0:00:03.5]} 58. Rf6 {[%clk 0:00:05.4]} 58... Rc8
{[%clk 0:00:03.2]} 59. Rf1 {[%clk 0:00:05.5]} 59... Rh8+ {[%clk 0:00:03.5]} 60.
Kg4 {[%clk 0:00:05.9]} 60... Rc8 {[%clk 0:00:04.3]} 61. Re1+ {[%clk 0:00:05.8]}
61... Kd6 {[%clk 0:00:04.1]} 62. h5 {[%clk 0:00:06.2]} 62... Rc4+ {[%clk
0:00:04.5]} 63. Kf5 {[%clk 0:00:06.5]} 63... Rc1 {[%clk 0:00:03.3]} 64. Rxc1
{[%clk 0:00:05.7]} 1-0

[Event "Late-Titled-Tuesday-Blitz-April-30-2024"]
[Site "Chess.com"]
[Date "2024.04.30"]
[Round "5"]
[White "reevecanada"]
[Black "ameetghasi100"]
[Result "1-0"]
[WhiteElo "2649"]
[BlackElo "2809"]
[TimeControl "180+1"]
[EndTime "14:58:26 PDT"]
[Termination "reevecanada won on time"]

1. e4 {[%clk 0:02:55]} 1... g6 {[%clk 0:03:00.2]} 2. d4 {[%clk 0:02:54.4]} 2...
Bg7 {[%clk 0:03:01.1]} 3. Nc3 {[%clk 0:02:53.7]} 3... d6 {[%clk 0:03:02]} 4. Be3
{[%clk 0:02:52.7]} 4... Nf6 {[%clk 0:03:02.4]} 5. f3 {[%clk 0:02:52.6]} 5... O-O
{[%clk 0:03:02.8]} 6. Nge2 {[%clk 0:02:52.7]} 6... Nc6 {[%clk 0:03:02.6]} 7. Qd2
{[%clk 0:02:51.7]} 7... e5 {[%clk 0:03:02.9]} 8. O-O-O {[%clk 0:02:51.9]} 8...
a6 {[%clk 0:03:01.7]} 9. g4 {[%clk 0:02:51.3]} 9... b5 {[%clk 0:03:01.8]} 10. h4
{[%clk 0:02:51.6]} 10... b4 {[%clk 0:02:59.2]} 11. Nd5 {[%clk 0:02:51.7]} 11...
exd4 {[%clk 0:02:25.9]} 12. Nxd4 {[%clk 0:02:49.9]} 12... Nxd4 {[%clk
0:02:18.8]} 13. Bxd4 {[%clk 0:02:47.7]} 13... Be6 {[%clk 0:02:13.2]} 14. h5
{[%clk 0:02:44.7]} 14... Bxd5 {[%clk 0:01:49]} 15. exd5 {[%clk 0:02:41.4]} 15...
Re8 {[%clk 0:01:48]} 16. Bh3 {[%clk 0:02:17.2]} 16... Qe7 {[%clk 0:01:42.7]} 17.
h6 {[%clk 0:02:14.2]} 17... Bh8 {[%clk 0:01:42.5]} 18. g5 {[%clk 0:02:14.1]}
18... Nh5 {[%clk 0:01:36.5]} 19. Bxh8 {[%clk 0:02:13.3]} 19... Kxh8 {[%clk
0:01:37.4]} 20. Rhe1 {[%clk 0:02:12.5]} 20... Qf8 {[%clk 0:01:28.9]} 21. Bg4
{[%clk 0:02:09.7]} 21... a5 {[%clk 0:01:06.7]} 22. Bxh5 {[%clk 0:02:03.2]} 22...
gxh5 {[%clk 0:01:06.2]} 23. Qd4+ {[%clk 0:02:00.8]} 23... Kg8 {[%clk 0:01:05.9]}
24. f4 {[%clk 0:01:57.5]} 24... h4 {[%clk 0:00:52]} 25. f5 {[%clk 0:01:55.9]}
25... h3 {[%clk 0:00:52.1]} 26. Qh4 {[%clk 0:01:37.1]} 26... Rxe1 {[%clk
0:00:49.2]} 27. Rxe1 {[%clk 0:01:34.4]} 27... Re8 {[%clk 0:00:49.5]} 28. Rh1
{[%clk 0:01:31.8]} 28... Qe7 {[%clk 0:00:37.5]} 29. Rxh3 {[%clk 0:01:23]} 29...
Qe1+ {[%clk 0:00:35.3]} 30. Qxe1 {[%clk 0:01:22.2]} 30... Rxe1+ {[%clk
0:00:36.2]} 31. Kd2 {[%clk 0:01:22.4]} 31... Re5 {[%clk 0:00:37.1]} 32. Rf3
{[%clk 0:01:13]} 32... Rxd5+ {[%clk 0:00:36.7]} 33. Ke3 {[%clk 0:01:13.2]} 33...
Rc5 {[%clk 0:00:31.5]} 34. Kd3 {[%clk 0:01:10]} 34... Rd5+ {[%clk 0:00:23.6]}
35. Ke4 {[%clk 0:01:09.8]} 35... Rc5 {[%clk 0:00:23.1]} 36. Re3 {[%clk
0:01:07.4]} 36... Kf8 {[%clk 0:00:20.1]} 37. c3 {[%clk 0:01:02.7]} 37... bxc3
{[%clk 0:00:18.6]} 38. bxc3 {[%clk 0:01:03.6]} 38... Rc4+ {[%clk 0:00:09.5]} 39.
Kf3 {[%clk 0:01:01.3]} 39... Rc5 {[%clk 0:00:09.8]} 40. Kg4 {[%clk 0:00:52.5]}
40... Rc4+ {[%clk 0:00:09.5]} 41. Kh5 {[%clk 0:00:52.5]} 41... Rc5 {[%clk
0:00:10]} 42. f6 {[%clk 0:00:52.3]} 42... Rd5 {[%clk 0:00:03.7]} 43. Re7 {[%clk
0:00:48.3]} 43... Rc5 {[%clk 0:00:02.5]} 44. Re3 {[%clk 0:00:46.3]} 44... Rc4
{[%clk 0:00:02.5]} 45. a3 {[%clk 0:00:40.2]} 45... d5 {[%clk 0:00:02.5]} 46. Re5
{[%clk 0:00:26.1]} 46... Rc5 {[%clk 0:00:02.8]} 47. c4 {[%clk 0:00:24.6]} 47...
c6 {[%clk 0:00:02.9]} 48. cxd5 {[%clk 0:00:24.8]} 48... cxd5 {[%clk 0:00:02.9]}
49. a4 {[%clk 0:00:23.9]} 49... Rc4 {[%clk 0:00:02.7]} 50. Rxd5 {[%clk
0:00:24.1]} 50... Ke8 {[%clk 0:00:03.3]} 51. Rxa5 {[%clk 0:00:24.2]} 51... Rc1
{[%clk 0:00:03.7]} 52. Ra7 {[%clk 0:00:23]} 52... Rh1+ {[%clk 0:00:03.7]} 53.
Kg4 {[%clk 0:00:22.5]} 53... Rg1+ {[%clk 0:00:04.6]} 54. Kf4 {[%clk 0:00:22.3]}
54... Rf1+ {[%clk 0:00:05.2]} 55. Ke3 {[%clk 0:00:22.3]} 55... Rg1 {[%clk
0:00:05.5]} 56. Re7+ {[%clk 0:00:19.1]} 56... Kf8 {[%clk 0:00:05.7]} 57. Rc7
{[%clk 0:00:17.3]} 57... Ke8 {[%clk 0:00:05.7]} 58. Rc5 {[%clk 0:00:12.9]} 58...
Kd7 {[%clk 0:00:06.1]} 59. a5 {[%clk 0:00:13.1]} 59... Kd6 {[%clk 0:00:06.7]}
60. Rb5 {[%clk 0:00:13.5]} 60... Ra1 {[%clk 0:00:06.4]} 61. Rb7 {[%clk
0:00:12.3]} 61... Ke6 {[%clk 0:00:06.3]} 62. Re7+ {[%clk 0:00:12.2]} 62... Kf5
{[%clk 0:00:06.9]} 63. Rxf7 {[%clk 0:00:09.3]} 63... Kxg5 {[%clk 0:00:07.8]} 64.
Rxh7 {[%clk 0:00:08.8]} 64... Kxf6 {[%clk 0:00:08.3]} 65. Ra7 {[%clk 0:00:08.9]}
65... Kg6 {[%clk 0:00:08.6]} 66. h7 {[%clk 0:00:08.5]} 66... Rh1 {[%clk
0:00:09]} 67. a6 {[%clk 0:00:08.9]} 67... Rh4 {[%clk 0:00:08.1]} 68. Rb7 {[%clk
0:00:07.7]} 68... Ra4 {[%clk 0:00:03.4]} 69. h8=Q {[%clk 0:00:06.6]} 69... Ra3+
{[%clk 0:00:04.3]} 70. Kd2 {[%clk 0:00:06]} 1-0